{"text_format":"2","workbook":"xlsx","n_sheets":4,"sheets":["Info","Főösszesítő","Munkanem összesítő","82.Épületgépészeti szerelvénye"],"not_rendered":{"charts":0,"images":0,"macros":0,"external_links":0,"defined_names":0,"comments":0,"pivot_tables":0},"unopened":[],"bounds":{"document_bytes":16777216,"sheet_cells":100000,"run_cost":"one","rows_first":2000,"rows_last":500,"rows_between":2000,"halvings":0,"cell_chars":16384,"cell_head_chars":4096},"cells_cut":0,"cells_raw":0,"read":"whole","date_system":"1900"}

{"sheet":"Info","index":0,"n_rows":11,"n_cols":1,"rows_kept":11,"cut":false,"hidden":false,"merged":[[0,0,0,1],[19,0,21,2],[13,0,13,5],[14,0,14,5],[15,0,15,3],[16,0,16,3],[17,0,17,3],[18,0,18,3]]}
["Exportált költségvetés adatai"]
["Költségvetés neve:"]
["Leírás:"]
["Építmény tulajdonsága:"]
[]
["Utolsó módosítás:"]
[]
[]
["Bruttó végösszeg:"]
[]
["Készítette:"]

{"sheet":"Főösszesítő","index":1,"n_rows":8,"n_cols":4,"rows_kept":8,"cut":false,"hidden":false,"merged":[[0,0,0,3],[2,0,2,3],[5,2,5,3],[6,2,6,3],[7,2,7,3]]}
[]
[]
["Költségvetés főösszesítő"]
["Megnevezés",null,"Anyagköltség","Díjköltség"]
["1 Építmény közvetlen költségei",null,{"$f":"'Munkanem összesítő'!C3","v":0},{"$f":"'Munkanem összesítő'!D3","v":0}]
["2.1 ÁFA vetítési alap",null,{"$f":"ROUND(C5+D5,0)","v":0}]
["2.2 ÁFA",0.27,{"$f":"ROUND(C6*B7,0)","v":0}]
["3 A munka ára (HUF)",null,{"$f":"ROUND(C7+C6,0)","v":0}]

{"sheet":"Munkanem összesítő","index":2,"n_rows":3,"n_cols":4,"rows_kept":3,"cut":false,"hidden":false,"merged":[]}
["Ssz.","Megnevezés","Anyagköltség","Díjköltség"]
["82","Épületgépészeti szerelvények és berendezések szerelése",{"$f":"'82.Épületgépészeti szerelvénye'!H13","v":0},{"$f":"'82.Épületgépészeti szerelvénye'!I13","v":0}]
[null,"Összesen (HUF)",{"$f":"ROUND(SUM(C2:C2),0)","v":0},{"$f":"ROUND(SUM(D2:D2),0)","v":0}]

{"sheet":"82.Épületgépészeti szerelvénye","index":3,"n_rows":13,"n_cols":10,"rows_kept":13,"cut":false,"hidden":false,"merged":[]}
["Ssz.","Tételszám","Tétel szövege","Menny.","Egység","Anyag egységár","Díj egységre","Anyag összesen","Díj összesen","Megjegyzés"]
[1,null,"Galletti MPET18-C0AC 19 kW kompakt folyadékhűtő berendezés telepítése ",1,"db",0,0,{"$f":"ROUND(F2*D2,0)","v":0},{"$f":"ROUND(G2*D2,0)","v":0}]
[2,null,"Meglévő folyadékhűtő elbontása, ártalmatlanítása",1,"db",0,0,0,0]
[3,null,"Daruzási munka (folyadékhűtő le- és felhelyezése)",1,"db",0,0,0,0]
[4,null,"Folyadékhűtő csőszerelés, elektromos szerelés",1,"db",0,0,0,0]
[5,null,"Csőszigetelések javítása",1,"db",0,0,0,0]
[6,null,"Beüzemelés, próbaüzem, átadás",1,"db",0,0,0,0]
[7,null,"Hatósági regisztráció szivárgásvizsgálattal",1,"db",0,0,0,0]
[8,null,"Hűtési hőcserélő beépítése 19 kW",1,"db",0,0,0,0]
[9,null,"Primer oldali puffertartály 100l beépítése",1,"db",0,0,0,0]
[10,null,"Primer oldal fűtési kör feltöltése glikollal 60 l",1,"db",0,0,0,0]
[11,null,"Szekunder oldal hidraulikus leválasztó sorba kötése",1,"db",0,0,0,0]
[null,null,"Munkanem összesen (HUF)",{"$nulls":4},{"$f":"ROUND(SUM(H2:H12),0)","v":0},{"$f":"ROUND(SUM(I2:I12),0)","v":0}]